Cogmind - Beta 9.3 @@@ ROGUE MODE // 2019.12.19 @ 00:34:03 // Winter2019/RPGLIKE Player: hurik Result: Destroyed by G-47 Trooper with Particle Gun Performance ------------- Evolutions (2) 1000 Regions Visited (3) 600 Robots Destroyed (47) 235 Value Destroyed (928) 928 Prototype IDs (0) 0 Alien Tech Used (0) 0 Bonus (0) 0 TOTAL SCORE: 2763 Bonus ------- None Cogmind --------- Core Integrity 0/1250 Matter 143/300 Energy 216/220 System Corruption 0% Temperature Cool (171) Movement Treading (160) Location -8/Materials Parts ------- > --- POWER (2) -------- Light Nuclear Core Light Nuclear Core > --- PROPULSION (2) --- Light Treads Improved Treads > --- UTILITY (4) ------ Improved Heat Sink Improved Sensor Array Improved Signal Interpreter Medium Armor Plating > --- WEAPON (3) ------- Beam Rifle Autogun Autogun > --- INVENTORY (2) ---- Hardened Light Armor Plating Mini Grenade Launcher Peak State ------------ > --- POWER ------------ Light Nuclear Core Light Nuclear Core > --- PROPULSION ------- Light Treads Improved Treads > --- UTILITY ---------- Improved Heat Sink Improved Sensor Array Improved Signal Interpreter Medium Armor Plating > --- WEAPON ----------- Beam Rifle Autogun Autogun > --- INVENTORY -------- Hardened Light Armor Plating Mini Grenade Launcher [Rating: 24] Favorites ----------- Power Ion Engine Engine Ion Engine Power Core Light Nuclear Core Propulsion Light Treads Treads Light Treads Utility Improved Sensor Array Device Improved Sensor Array Processor Signal Interpreter Protection Medium Armor Plating Weapon Autogun Energy Gun Medium Laser Energy Cannon Light EM Pulse Cannon Ballistic Gun Autogun Build | -11 -10 -9 -8 ------- Run | Scr Mat Mat Mat Slots Evolved 7 | 4 . 3 . Power 1 | 1 . . . Propulsion 1 | 1 . . . Utility 3 | 1 . 2 . Weapon 2 | 1 . 1 . Parts Attached 29 | 7 2 19 1 Power 5 | 2 . 3 . Engine 2 | 2 . . . Core 3 | . . 3 . Reactor . | . . . . Propulsion 7 | 2 . 5 . Treads 7 | 2 . 5 . Leg . | . . . . Wheel . | . . . . Hover . | . . . . Flight . | . . . . Utility 9 | . 2 6 1 Device 5 | . . 4 1 Storage . | . . . . Processor 3 | . 2 1 . Hackware . | . . . . Protection 1 | . . 1 . Artifact . | . . . . Weapon 8 | 3 . 5 . Energy Gun 3 | 2 . 1 . Energy Cannon 1 | . . 1 . Ballistic Gun 4 | 1 . 3 . Ballistic Cannon . | . . . . Launcher . | . . . . Special Weapon . | . . . . Impact Weapon . | . . . . Slashing Weapon . | . . . . Piercing Weapon . | . . . . Special Melee Weapon . | . . . . Unidentified Prototypes . | . . . . Parts Lost . | . . . . Power . | . . . . Propulsion . | . . . . Utility . | . . . . Weapon . | . . . . Highest Loss Streak . | . . . . Average Slot Usage (%) 95 | . 85 98 100 Engine 12 | . 25 9 . Core 8 | . . 10 18 Treads 20 | . 25 19 18 Device 10 | . . 12 18 Processor 10 | . 10 10 9 Protection 5 | . . 7 9 Energy Gun 10 | . 12 9 9 Energy Cannon 2 | . . 4 . Ballistic Gun 14 | . 12 14 18 Naked Turns . | . . . . Heaviest Build 28 | 14 13 28 28 Greatest Support 43 | 40 40 43 43 Greatest Overweight (x) 1 | . . 1 . Average Overweight (x) . | . . . . Largest Inventory Capacity 2 | . . 2 2 Average Capacity 1 | . . 1 2 Most Carried 2 | . . 2 2 Average Carried 1 | . . 1 2 Final Capacity 2 | . . 2 2 Final Carried 2 | . . 2 2 Class Distribution -------------------- 68% | Skirmisher 31% | Mutant Dominant Class ---------------- Mutant | -10/Materials Skirmisher | -9/Materials Skirmisher | -8/Materials Resources | -11 -10 -9 -8 ----------- Run | Scr Mat Mat Mat Matter Collected 712 | 198 122 274 118 Remotely . | . . . . Salvage Created 1235 | . 193 680 362 Parts 106 | . 14 73 19 Haulers Intercepted 1 | . . 1 . Recyclers Shooed . | . . . . Parts Field Recycled . | . . . . Retrieved Matter . | . . . . Parts Self-Destructed . | . . . . Prevented . | . . . . Kills | -11 -10 -9 -8 ------- Run | Scr Mat Mat Mat Combat Hostiles Destroyed 32 | . 6 24 2 Guns 28 | . 6 20 2 Cannons 4 | . . 4 . Classes Destroyed 10 | . 4 4 2 Worker 2 | . . 2 . Builder 5 | . . 2 3 Tunneler 1 | . . . 1 Hauler 1 | . . 1 . Recycler 1 | . . . 1 Operator 1 | . 1 . . Watcher 4 | . 1 2 1 Swarmer 17 | . 4 13 . Grunt 10 | . 2 6 2 Sentry 5 | . . 5 . Best Kill Streak 6 | . 2 6 3 Combat Bots Only 5 | . 2 5 2 Max Kills in Single Turn 2 | . 1 2 1 Gunslinging . | . . . . Exploded . | . . . . Melee . | . . . . Uniques/NPCs Destroyed . | . . . . Combat | -11 -10 -9 -8 -------- Run | Scr Mat Mat Mat Damage Taken 1590 | . 330 1066 194 Core 1304 | . 257 897 150 Absorbed by Shields . | . . . . Redirected to Core 926 | . 222 554 150 Core Remaining (%) 58 | 100 65 11 . Volleys Fired 107 | . 30 54 23 Largest 3 | . 2 3 3 Hottest 126 | . 70 126 102 Shots Fired 272 | . 60 143 69 Gun 245 | . 60 116 69 Cannon 27 | . . 27 . Launcher . | . . . . Special . | . . . . Kinetic 143 | . 30 67 46 Thermal 102 | . 30 49 23 Explosive . | . . . . Electromagnetic 27 | . . 27 . Robot Hit Streak 18 | . 10 17 18 Robot Miss Streak 8 | . 8 2 1 Penetration Max . | . . . . Secondary Targets 1 | . 1 . . Max Gunslinging Chain 1 | . 1 . . Shots Hit Robots 171 | . 32 87 52 Core Hits 70 | . 15 43 12 Critical Hits . | . . . . Critical Kills . | . . . . Critical Parts Destroyed . | . . . . Melee Attacks . | . . . . Impact . | . . . . Slashing . | . . . . Piercing . | . . . . Sneak Attacks . | . . . . Combat Hostiles . | . . . . Follow-up Attacks . | . . . . Damage Inflicted 2308 | . 344 1270 694 Guns 1912 | . 344 874 694 Cannons 396 | . . 396 . Explosions . | . . . . Melee . | . . . . Ramming . | . . . . Kinetic 925 | . 155 335 435 Thermal 987 | . 189 539 259 Explosive . | . . . . Electromagnetic 396 | . . 396 . Impact . | . . . . Slashing . | . . . . Piercing . | . . . . Highest Corruption . | . . . . Average Corruption . | . . . . Corruption Purged . | . . . . Overload Shots . | . . . . Overflow Damage 22 | . . 22 . Projectiles 22 | . . 22 . Explosions . | . . . . Melee . | . . . . Knockbacks . | . . . . Impact . | . . . . Kinetic . | . . . . Secondary . | . . . . Self-Inflicted Damage . | . . . . Shots . | . . . . Rammed . | . . . . Targets Rammed . | . . . . Kicked . | . . . . Crushed . | . . . . Highest Temperature 646 | . 142 646 303 Average Temperature 159 | . 47 214 97 Received Heat Transfer 435 | . 84 234 117 Effects 55 | . . 55 . Shutdowns 14 | . . 14 . Energy Bleed 3 | . . 3 . Interference 16 | . . 16 . Matter Decay 3 | . . 3 . Short Circuit 3 | . . 3 . Damage (minor) 3 | . . 3 . Damage (major) 11 | . . 11 . Damage (core) 2 | . . 2 . Siege Activations . | . . . . Robots Corrupted . | . . . . Combat Hostiles . | . . . . Parts Fried 1 | . . 1 . Impact Corruptions . | . . . . Robots Melted . | . . . . Combat Hostiles . | . . . . Parts Melted 2 | . . 2 . Heat Transferred 2738 | . 555 1517 666 Parts Sabotaged . | . . . . Parts Stolen . | . . . . Parts Stripped . | . . . . Power Chain Reactions . | . . . . Missiles Intercepted . | . . . . Alert | -11 -10 -9 -8 ------- Run | Scr Mat Mat Mat Peak Influence 376 | . 115 376 250 Average Influence 150 | . 53 188 190 Maximum Alert Level 1 | . . 1 1 Low Security (%) 62 | 100 100 50 37 Level 1 37 | . . 49 62 Level 2 . | . . . . Level 3 . | . . . . Level 4 . | . . . . Level 5 . | . . . . High Security . | . . . . Max Security . | . . . . Squads Dispatched 3 | . 1 . 2 Investigation . | . . . . Extermination . | . . . . Reinforcement 2 | . 1 . 1 Assault . | . . . . Garrison 1 | . . . 1 Intercept . | . . . . Construction Impeded 1 | . . . 1 Haulers Reinforced . | . . . . Stealth | -11 -10 -9 -8 --------- Run | Scr Mat Mat Mat Distress Signals 4 | . . 3 1 Communications Jammed . | . . . . Distress Signals . | . . . . Times Spotted 62 | . 20 35 7 Peak Tracking Total 5 | . 4 5 3 Tactical Retreats 8 | . 4 4 . Traps | -11 -10 -9 -8 ------- Run | Scr Mat Mat Mat Traps Triggered . | . . . . Indirectly . | . . . . Trap Hack Attempts . | . . . . Triggered . | . . . . Disarmed . | . . . . Reprogrammed . | . . . . Reused . | . . . . Traps Extracted . | . . . . Installed . | . . . . Triggered . | . . . . Machines | -11 -10 -9 -8 ---------- Run | Scr Mat Mat Mat Machines Disabled 1 | . . 1 . Max in Single Turn 1 | . . 1 . Machines Sabotaged . | . . . . Garrisons Compromised . | . . . . Overloaded Fab Kills . | . . . . Fab Network Shutdowns . | . . . . Hacking | -11 -10 -9 -8 --------- Run | Scr Mat Mat Mat Machines Accessed 7 | . 2 5 . Terminals 7 | . 2 5 . Fabricators . | . . . . Repair Stations . | . . . . Recycling Units . | . . . . Scanalyzers . | . . . . Garrison Access . | . . . . Total Hacks 21 | . 6 15 . Successful 9 | . 2 7 . Failed 12 | . 4 8 . Catastrophic 1 | . . 1 . Database Lockouts . | . . . . Manual 1 | . . 1 . Terminals 21 | . 6 15 . Fabricators . | . . . . Repair Stations . | . . . . Recycling Units . | . . . . Scanalyzers . | . . . . Garrison Access . | . . . . Terminal Hacks 9 | . 2 7 . Record 2 | . . 2 . Level Access Points 1 | . . 1 . Alert Level 1 | . 1 . . Locate Traps 1 | . . 1 . Patrol Status 1 | . 1 . . Assault Status 1 | . . 1 . Recall Reinforcements 1 | . . 1 . Hauler Manifests 1 | . . 1 . Fabricator Hacks . | . . . . Repair Station Hacks . | . . . . Recycling Unit Hacks . | . . . . Scanalyzer . | . . . . Garrison Access Hacks . | . . . . Unauthorized Hacks . | . . . . Terminals . | . . . . Fabricators . | . . . . Repair Stations . | . . . . Recycling Units . | . . . . Scanalyzers . | . . . . Garrison Access . | . . . . Data Cores Recovered . | . . . . Used . | . . . . Hacking Detections 6 | . 2 4 . Full Trace Events . | . . . . Feedback Events . | . . . . Feedback Blocked . | . . . . Robot Schematics Acquired . | . . . . Robots Built . | . . . . Matter . | . . . . Time . | . . . . Total Robot Build Rating . | . . . . Part Schematics Acquired . | . . . . Parts Built . | . . . . Matter . | . . . . Time . | . . . . Total Part Build Rating . | . . . . Parts Repaired . | . . . . Time . | . . . . Parts Recycled . | . . . . Recycled Matter . | . . . . Retrieved Matter . | . . . . Retrieved Components . | . . . . Parts Scanalyzed . | . . . . Part Schematics Acquired . | . . . . Parts Damaged . | . . . . Bothacking | -11 -10 -9 -8 ------------ Run | Scr Mat Mat Mat Used RIF Installer . | . . . . Robots Hacked . | . . . . Non-combat . | . . . . Combat . | . . . . Robot Hacks Applied . | . . . . Relay Couplers Released . | . . . . Robots Rewired . | . . . . Allies Hacked . | . . . . Hacks Repelled . | . . . . Allies | -11 -10 -9 -8 -------- Run | Scr Mat Mat Mat Total Allies . | . . . . Largest Group . | . . . . Highest-Rated Group . | . . . . Highest-Rated Ally . | . . . . Total Orders . | . . . . Ally Attacks . | . . . . Total Damage . | . . . . Kills . | . . . . Allies Corrupted . | . . . . Allies Melted . | . . . . Intel | -11 -10 -9 -8 ------- Run | Scr Mat Mat Mat Robot Analysis Total . | . . . . Derelict Logs Recovered . | . . . . Drone Launches . | . . . . Drone Recoveries . | . . . . Exploration | -11 -10 -9 -8 ------------- Run | Scr Mat Mat Mat Turns Passed 2671 | 129 573 1789 180 Spaces Moved 1372 | 78 298 938 58 Core 5 | 5 . . . Treads 1367 | 73 298 938 58 Legs . | . . . . Wheels . | . . . . Hover . | . . . . Flight . | . . . . Fastest Speed 50 | 50 160 160 160 Average Speed 161 | 152 160 162 160 Slowest Speed 180 | 160 160 180 160 Overloaded Moves . | . . . . Propulsion Burnouts . | . . . . Robots Hopped . | . . . . Cave-ins Triggered . | . . . . Exploration Rate (%) 33 | 4 50 69 12 Regions Visited 3 Branch Regions . Pre-discovered Areas . | . . . . Known Exits Taken 2 | . 1 1 . Unknown Exits Taken 1 | 1 . . . Scrap Searched . | . . . . Spaces Dug . | . . . . Terrain Destroyed . | . . . . Melee . | . . . . Projectile . | . . . . AOE . | . . . . Actions | -11 -10 -9 -8 --------- Run | Scr Mat Mat Mat Total 1631 | 85 339 1103 104 Wait 97 | . 8 68 21 Move 1369 | 77 297 937 58 Hop . | . . . . Pick Up 10 | . . 10 . Fast Attach 17 | 7 2 8 . Attach . | . . . . Detach . | . . . . Swap 12 | . . 11 1 Drop 17 | 1 . 15 1 Fire 107 | . 30 54 23 Melee . | . . . . Ram . | . . . . Kick . | . . . . Crush . | . . . . Escape Stasis . | . . . . Rewire . | . . . . Trap . | . . . . Miscellaneous 2 | . 2 . . Route ------- -11/Scrapyard -10/Materials (discovered 2 exits: *Mat / [*Min]) -9/Materials (discovered 3 exits: *Mat x3) -8/Materials History --------- Turn | Location | Event 1 | -11/Scrapyard | Upgraded with Power slot (x1) 1 | -11/Scrapyard | Upgraded with Propulsion slot (x1) 1 | -11/Scrapyard | Upgraded with Utility slot (x1) 1 | -11/Scrapyard | Upgraded with Weapon slot (x1) 9 | -11/Scrapyard | Discovered new exit (range 15) 130 | -11/Scrapyard | Entered Materials 302 | -10/Materials | Build established: Mutant 382 | -10/Materials | Discovered new exit (range 14) 676 | -10/Materials | Discovered new exit (range 13) 697 | -10/Materials | Identified exit to Materials 703 | -10/Materials | Entered another Materials area 703 | -9/Materials | Upgraded with Weapon slot (x1) 705 | -9/Materials | Reached level 2 910 | -9/Materials | Core integrity fell below 50% 950 | -9/Materials | Core integrity fell below 20% 971 | -9/Materials | Reached level 3 1000 | -9/Materials | Upgraded with Utility slot (x1) 1274 | -9/Materials | Build established: Skirmisher 1861 | -9/Materials | Reached level 4 1894 | -9/Materials | Upgraded with Utility slot (x1) 2444 | -9/Materials | Identified exit to Materials 2492 | -9/Materials | Entered another Materials area 2493 | -8/Materials | Core integrity fell below 50% 2493 | -8/Materials | Core integrity fell below 20% 2494 | -8/Materials | Reached level 5 2624 | -8/Materials | Garrison activated, responded to threat 2672 | -8/Materials | Destroyed by G-47 Trooper with Particle Gun Last Messages --------------- 02511_ ALERT: Construction progress impeded, dispatching reinforcements to local area. 02513_ Acquired 21 matter. 02520_ U-05 Engineer destroyed. 02526_ R-06 Scavenger collects Wheel. 02532_ W-25 Informer sends out distress signal. 02534_ R-06 Scavenger collects Terrain Scanner. 02554_ G-47 Trooper destroyed. 02566_ Dropped Heat Sink. 02572_ Acquired 71 matter. 02586_ R-06 Scavenger collects Structural Scanner. 02594_ R-06 Scavenger collects Aluminum Leg. 02609_ Destroyed Imp. Hover Unit. 02612_ W-25 Informer destroyed. 02621_ U-05 Engineer destroyed. 02624_ R-06 Scavenger calls for garrison support. 02624_ ALERT: Activating Garrison Access M001. 02624_ R-06 Scavenger destroyed. 02643_ U-05 Engineer builds a Door. 02667_ Destroyed Particle Gun. Map ----- +----------------------------------------------------+ | ?????????????????????????????????????????????????? | | ?????????????????????????????????????????????????? | | ?????????????????????????????????????????????????? | | ?????????????????????????????????????????????????? | | ?????????????????????????????????????????????????? | | ?????????????????????????????????????????????????? | | ?????????????????????????????????????????????????? | | ?????????????????????????????????????????????????? | | ?????????????????????????????????????????????????? | | ?????????????????????????????????????????????????? | | ?????????????????????????????????????????????????? | | ?????????????????????????????????????????????????? | | ?????????????????????????????????????????????????? | | ?????????????????????????????????????????????????? | | ?????????????????????????????????????????????????? | | ?????????????????????????????????????????????????? | | ?????????????????????????????????????????????????? | | ?????????????????????????????????????????????????? | | ????????????????##############???????????????????? | | ??????????# ????#!! #???????????????????? | | ??????????# ????#!! #???#???????????????? | | ??????????# ???#! #?? #???????????????? | | ??????????# ???# #? #???????????????? | | ????##+#### ???# # #???????????????? | | ???? ###########+#####r u#???????????????? | | ???# g !!%=@ g% #???????????????? | | ???# =u*! ! #???????????????? | | ???# ^ [u= #???????????????? | | ???# ! #######+##### #???????????????? | | ???# ^ u #????"" ????????????????????? | | #??# ^ #?? """ ??????????????????? | | #??# """ """ #?# """ #?????????????????? | | #??# """ """ #?# #?????????????????? | | #??# """ """ #?# """ #?????????????????? | | #??# ! #?# G" #?????????????????? | | #??# #?? """ #?????????????????? | | #??# //[ #?? #?????????????????? | | #### "T" //[ ##########??#?????????????????? | | """ /[= ??????????????????????? | | % ??????????????????????? | | [= ??????????????????????? | | ###+#################### ??????????????????????? | | # !%* #????????????????? ??????????????????????? | | # #?????????????????? ??????????????????????? | | # #?????????????????????????????????????????? | | # #?????????????????????????????????????????? | | # #?????????????????????????????????????????? | | # #?????????????????????????????????????????? | | ########?????????????????????????????????????????? | | ?????????????????????????????????????????????????? | +----------------------------------------------------+ Best States ------------- Heat Dissipation 39 Energy Generation 23 Energy Capacity 400 Matter Stores 300 Matter Capacity 300 Sight Range 18 Robot Scan Range 13 Terrain Scan Density 10 Armor Coverage 225 Evasion (%) 40 Recoil Reduction 2 Item Schematics ----------------- None Robot Schematics ------------------ None Fabricated ------------ Nothing Alien Tech Used ----------------- None Achievements -------------- None Challenges ------------ None RPGLIKE | -11 -10 -9 -8 --------- Run | Scr Mat Mat Mat Levels Raised 4 | . . 3 1 XP Earned 10330 | 3000 770 4775 1785 XP Spent 7455 | 2000 . 5455 . Upgrades 24 | 4 . 20 . Power Slot 1 | 1 . . . Propulsion Slot 1 | 1 . . . Utility Slot 3 | 1 . 2 . Weapon Slot 2 | 1 . 1 . Core Integrity 13 | . . 13 . Inventory Capacity 2 | . . 2 . Ranged Accuracy 2 | . . 2 . Protomatter Created 431 | . 49 382 . Integrity Restored 48 | . 48 . . Core 48 | . 48 . . Protomatter Decayed 382 | . . 382 . Game ------ Seed CryofiberIntegrationScythe Manual? 0 Play Time 00:32:14 Cumulative 46.9 hours Start 2019.12.18 @ 23:51:10 End 2019.12.19 @ 00:34:03 Sessions 1 Manual Loads 0 Difficulty Rogue Special Mode Winter2019/RPGLIKE Game No. 57 Rogue 57 Adventurer 0 Explorer 0 Win Type - Total 0 Types 0/0/0/0/0/0/0 Lore% 30 Gallery% 43 Achievement% 26 Wizard Run 0 Options --------- ASCII 0 Keyboard 0 Movement Numpad Keybinds 0 Fullscreen 1 Font 20/SmallcapsGlow Map View 66x50 Tactical HUD 1 Map Filters NONE Filters NONE Steam 1 RUN: 1f859d6a-0c69-4378-9a97-9e7609966093